bitfinex-derivatives/quotes_ETHF0:USTF0_20260104
["timestamp","ask_amount","ask_price","bid_price","bid_amount"]
[1767563436411,0.78836387,3139.6,3138.4,4.991]
[1767563439933,0.9238841,3139.9,3138.4,5.13152497]
[1767563440228,0.9238841,3139.9,3138.5,0.14052497]
[1767563449746,0.13552023,3139.9,3138.5,0.14052497]
[1767563449945,0.79208194,3140.0,3138.5,0.14052497]
[1767563453851,0.00371807,3140.0,3138.5,0.14052497]
[1767563454150,0.78836387,3139.9,3138.5,0.14052497]
[1767563462553,0.1392383,3140.0,3138.5,0.14052497]
[1767563462748,1.05272003,3139.9,3138.5,0.14052497]
[1767563462950,0.1392383,3140.0,3138.5,0.14052497]
[1767563463653,0.00371807,3140.0,3138.5,0.14052497]
[1767563472245,0.00371807,3140.0,3138.6,0.15937]
[1767563472449,0.00371807,3140.0,3138.7,0.14212068]
[1767563496278,0.00371807,3140.0,3138.7,0.30149068]
[1767563496585,0.00371807,3140.0,3138.8,0.14329327]
[1767563498382,0.62353306,3140.7,3139.0,0.14329327]
[1767563499386,0.62763478,3140.7,3139.0,0.14329327]
[1767563500690,0.76174821,3140.7,3139.0,0.14329327]
[1767563500889,0.13411343,3140.6,3139.1,4.984]
[1767563504588,0.62763478,3140.7,3139.2,0.14329327]
[1767563506088,0.62763478,3140.7,3139.3,5.12729327]
[1767563506595,0.62763478,3140.7,3139.4,0.14329327]
[1767563518206,0.00410172,3140.7,3139.5,0.14329327]
[1767563521711,0.00410172,3140.7,3139.7,0.13891045]
[1767563522013,0.00410172,3140.7,3139.7,0.14151276]
[1767563523013,0.00410172,3140.7,3139.7,0.00260231]
[1767563525708,0.00410172,3140.7,3140.0,0.78734377]
[1767563526009,0.13270619,3141.7,3140.3,0.78734377]
[1767563526313,1.83114729,3141.6,3140.1,0.13891045]
[1767563526512,0.78734377,3141.6,3140.1,0.13891045]
[1767563526714,0.92004996,3141.6,3140.1,0.13891045]
[1767563527013,0.92234631,3141.6,3140.1,0.13891045]
[1767563531812,0.13500254,3141.6,3140.1,0.13891045]
[1767563533718,0.78734377,3141.4,3140.1,0.13891045]
[1767563534016,0.78734377,3140.8,3139.7,0.14151276]
[1767563535414,0.92004996,3140.8,3139.7,0.00260231]
[1767563535922,0.13270619,3140.8,3139.7,0.00260231]
[1767563536123,0.92004996,3140.8,3139.7,0.00260231]
[1767563536722,0.13270619,3140.8,3139.7,0.00260231]
[1767563542520,0.13270619,3141.4,3139.7,0.92885653]
[1767563544223,0.13270619,3141.4,3140.0,0.78734377]
[1767563544830,0.92004996,3141.4,3140.0,0.78734377]
[1767563549730,0.13270619,3141.4,3140.0,0.78734377]
[1767563550032,0.00229635,3141.6,3140.1,0.13891045]
[1767563550229,1.0420719,3141.5,3140.1,0.13891045]
[1767563550425,0.14562552,3141.6,3140.1,0.13891045]
[1767563550623,1.04207126,3141.5,3140.1,0.13891045]
[1767563550824,0.14562552,3141.6,3140.1,0.13891045]
[1767563551033,1.04207126,3141.5,3140.1,0.13891045]
[1767563551231,0.14562552,3141.6,3140.1,0.13891045]
[1767563551422,1.042123,3141.5,3140.1,0.13891045]
[1767563551618,0.14562552,3141.6,3140.1,0.13891045]
[1767563551823,1.042123,3141.5,3140.1,0.13891045]
[1767563552129,0.14562552,3141.6,3140.1,0.13891045]
[1767563552427,1.04218327,3141.5,3140.1,0.13891045]
[1767563552629,0.14562552,3141.6,3140.1,0.13891045]
[1767563552835,1.04218324,3141.5,3140.1,0.13891045]
[1767563553029,0.14562552,3141.6,3140.1,0.13891045]
[1767563553332,1.04226174,3141.5,3140.1,0.13891045]
[1767563553530,0.14562552,3141.6,3140.1,0.13891045]
[1767563553735,1.04226174,3141.5,3140.1,0.13891045]
[1767563553930,0.14562552,3141.6,3140.1,0.13891045]
[1767563554129,1.04226174,3141.5,3140.1,0.13891045]
[1767563554332,0.14562552,3141.6,3140.1,0.13891045]
[1767563554635,1.04236314,3141.5,3140.1,0.13891045]
[1767563554820,0.14562552,3141.6,3140.1,0.13891045]
[1767563555025,1.04236483,3141.5,3140.1,0.13891045]
[1767563555335,0.14562552,3141.6,3140.1,0.13891045]
[1767563555538,1.04248843,3141.5,3140.1,0.13891045]
[1767563555738,0.14562552,3141.6,3140.1,0.13891045]
[1767563556038,1.04248697,3141.5,3140.1,0.13891045]
[1767563556230,0.14562552,3141.6,3140.1,0.13891045]
[1767563556541,1.04247959,3141.5,3140.1,0.13891045]
[1767563556837,0.14562552,3141.6,3140.1,0.13891045]
[1767563557038,1.04248334,3141.5,3140.1,0.13891045]
[1767563557241,0.14562552,3141.6,3140.1,0.13891045]
[1767563557440,1.04247828,3141.5,3140.1,0.13891045]
[1767563557639,0.14562552,3141.6,3140.1,0.13891045]
[1767563557837,0.14562552,3141.6,3139.9,0.94665377]
[1767563558045,0.78734377,3141.4,3140.0,0.1396152]
[1767563565242,0.92125202,3141.4,3140.0,0.1396152]
[1767563572745,0.13390825,3141.4,3140.0,0.1396152]
[1767563573061,0.13390825,3141.4,3140.0,0.2989152]
[1767563576346,0.13390825,3141.1,3140.0,0.1593]
[1767563576549,0.92125202,3140.9,3140.0,0.1593]
[1767563576946,0.13390825,3140.9,3140.0,0.1593]
[1767563577549,0.78734377,3141.2,3140.0,0.1593]
[1767563579058,0.13390825,3141.3,3140.0,0.1593]
[1767563579253,0.92125202,3141.3,3140.0,0.1593]
[1767563581445,0.14168792,3141.2,3140.0,0.1593]
[1767563589751,0.00229635,3141.6,3139.7,0.00260231]
[1767563589752,0.00229635,3141.6,3140.3,0.29723173]
[1767563589947,0.00229635,3141.6,3140.4,0.13794173]
[1767563593153,0.00229635,3141.6,3140.3,0.15929]
[1767563595262,0.14398427,3141.6,3140.0,0.13794173]
[1767563628093,1.01693638,3142.4,3140.0,0.13794173]
[1767563628292,0.13309986,3144.2,3142.1,0.78720216]
[1767563628497,0.13309986,3144.2,3142.2,4.742]
[1767563628699,0.13309986,3144.2,3142.3,4.927]
[1767563629192,0.13579192,3144.2,3142.6,0.78720216]
[1767563629398,0.96418783,3145.6,3143.1,0.78720216]
[1767563629591,0.96418783,3145.6,3143.2,0.42110222]
[1767563629793,0.78720216,3145.2,3143.3,0.42110222]
[1767563629993,0.78720216,3144.7,3143.4,0.42110222]
[1767563630193,0.96418783,3145.6,3143.5,0.42110222]
[1767563630388,0.96418783,3145.6,3142.7,0.94348005]
[1767563630389,0.78720216,3145.3,3143.6,0.42110222]
[1767563630589,0.78720216,3145.3,3143.7,0.42110222]
[1767563630796,0.78720216,3145.3,3143.8,0.42110222]
[1767563630998,0.78720216,3145.3,3143.9,0.42110222]
[1767563631192,0.78720216,3145.3,3142.9,2.104]
[1767563631393,0.13309986,3145.2,3142.9,2.104]
[1767563631694,0.13309986,3145.2,3142.9,2.24585645]
[1767563631990,0.13309986,3145.2,3143.0,0.14185645]
[1767563637195,0.13309986,3145.2,3143.1,0.14185645]
[1767563638395,0.13309986,3145.2,3143.2,0.14185645]
[1767563641092,0.14088117,3144.6,3142.7,5.05263063]
[1767563641495,0.14088117,3144.6,3142.8,0.13263063]
[1767563641900,0.14088117,3144.6,3142.9,0.13263063]
[1767563642503,0.14088117,3144.6,3143.1,0.13263063]
[1767563643103,0.14088117,3144.6,3143.2,0.50833634]
[1767563643310,0.14088117,3145.0,3143.3,0.37570571]
[1767563643502,0.14088117,3145.0,3143.4,0.37570571]
[1767563643704,0.14088117,3145.0,3143.5,0.37570571]
[1767563643906,0.14088117,3145.0,3143.6,0.37570571]
[1767563644102,0.14088117,3145.0,3143.7,0.37570571]
[1767563644303,0.14088117,3145.0,3143.8,0.37570571]
[1767563644510,0.14088117,3145.0,3143.9,0.37570571]
[1767563644709,0.14088117,3145.0,3144.0,0.37570571]
[1767563644902,0.14088117,3145.0,3144.1,0.37570571]
[1767563645103,0.14088117,3145.0,3144.2,0.37570571]
[1767563645304,0.14088117,3145.0,3144.3,0.37570571]
[1767563645504,0.14088117,3145.0,3144.4,0.37570571]
[1767563645801,0.14088117,3145.0,3143.2,0.13263063]
[1767563648212,0.9677964,3145.6,3143.6,0.13263063]
[1767563648413,0.9677964,3145.6,3143.7,0.13263063]
[1767563648713,0.78498394,3145.4,3144.0,0.13263063]
[1767563648912,0.78498394,3145.1,3144.0,0.13263063]
[1767563649220,0.78498394,3145.1,3143.6,6.13975063]
[1767563649713,0.78498394,3145.1,3143.7,0.13263063]
[1767563650218,0.78498394,3145.4,3143.8,0.13263063]
[1767563655418,1.00972031,3145.3,3143.8,0.13263063]
[1767563655610,0.78498394,3145.4,3143.8,0.13263063]
[1767563655811,1.00972026,3145.3,3143.8,0.13263063]
[1767563656114,0.78498394,3145.4,3143.8,0.13263063]
[1767563656313,1.01123106,3145.3,3143.8,0.13263063]
[1767563656510,1.01123106,3145.2,3143.8,0.13263063]
[1767563656710,0.78498394,3145.4,3143.8,0.13263063]
[1767563656910,1.01034328,3145.3,3143.8,0.13263063]
[1767563657110,1.01034328,3145.2,3143.8,0.13263063]
[1767563657312,0.49328321,3145.1,3143.8,0.13263063]
[1767563657511,0.78498394,3145.4,3143.8,0.13263063]
[1767563657718,0.78498394,3145.4,3143.9,0.36911482]
[1767563657920,0.78498394,3145.4,3144.0,0.36911482]
[1767563658220,2.47793906,3145.4,3144.1,0.36911482]
[1767563658520,2.16771676,3145.4,3143.8,0.13263063]
[1767563661520,2.30859793,3145.4,3143.8,0.13263063]
[1767563661707,1.83383629,3145.4,3143.8,0.13263063]
[1767563662720,1.69295512,3145.3,3143.8,0.13263063]
[1767563663019,1.69295512,3145.3,3144.1,0.13263063]
[1767563664214,1.69656369,3145.6,3144.2,0.13263063]
[1767563664416,0.00360857,3145.6,3144.2,0.13263063]
[1767563665021,0.00360857,3145.6,3144.3,4.97191084]
[1767563665321,0.00360857,3145.6,3144.6,0.78498394]
[1767563665619,0.00360857,3145.6,3144.6,0.78838401]
[1767563666416,0.00360857,3145.6,3144.6,0.00340007]
[1767563666417,0.14088117,3145.5,3144.6,0.00340007]
[1767563667323,0.41250161,3145.6,3144.6,0.00340007]
[1767563668326,0.41653001,3145.6,3144.6,0.00340007]
[1767563669324,1.01091604,3145.5,3144.6,0.00340007]
[1767563669525,1.01091604,3145.4,3144.6,0.00340007]
[1767563669714,1.01091604,3145.3,3144.6,0.00340007]
[1767563669916,0.41653001,3145.6,3144.6,0.00340007]
[1767563670116,1.01085202,3145.5,3144.6,0.00340007]
[1767563670412,1.01085202,3145.4,3144.6,0.00340007]
[1767563670615,1.01085202,3145.3,3144.6,0.00340007]
[1767563670828,1.01065037,3145.2,3143.7,0.14442591]
[1767563671129,0.78498394,3144.7,3143.6,0.15912]
[1767563671318,1.01065037,3144.6,3143.6,1.69012]
[1767563671516,0.78498394,3145.0,3143.6,1.69012]
[1767563671825,1.01060001,3144.9,3143.6,1.69012]
[1767563672027,1.01060001,3144.8,3143.6,1.69238323]
[1767563672229,1.01060001,3144.7,3143.6,1.69238323]
[1767563672418,0.78498394,3145.0,3143.6,1.69238323]
[1767563672619,1.01083046,3144.9,3143.6,1.69238323]
[1767563672821,1.01083046,3144.8,3143.6,1.69238323]
[1767563673133,1.01083046,3144.7,3143.6,1.69238323]
[1767563673329,0.78498394,3145.0,3143.6,1.69238323]
[1767563673531,1.01102896,3144.9,3143.6,1.69238323]
[1767563673731,1.01102896,3144.8,3143.6,1.69238323]
[1767563673930,1.01102896,3144.7,3143.6,1.69238323]
[1767563674130,0.78498394,3145.0,3143.6,1.69238323]
[1767563674432,1.01121419,3144.9,3143.6,1.69238323]
[1767563674632,1.01121419,3144.8,3143.6,1.69238323]
[1767563674834,1.79619813,3144.7,3143.6,0.00226323]
[1767563675035,1.01121419,3144.6,3143.6,4.41626323]
[1767563675336,0.78498394,3144.7,3143.6,4.41626323]
[1767563675533,1.01133359,3144.6,3143.6,4.41626323]
[1767563675736,0.78498394,3144.7,3143.6,4.41626323]
[1767563675931,1.01133251,3144.6,3143.6,4.41626323]
[1767563676132,0.78498394,3144.7,3143.6,4.41626323]
[1767563677421,0.26790185,3144.7,3143.6,0.00226323]
[1767563677635,0.26790185,3144.7,3143.6,4.91626323]
[1767563680026,0.78498394,3145.0,3143.6,4.91626323]
[1767563680230,1.01194383,3144.9,3143.6,4.91626323]
[1767563680527,0.78498394,3145.0,3143.6,4.91626323]
[1767563680729,1.01189537,3144.9,3143.6,4.91626323]
[1767563680925,0.78498394,3145.0,3143.6,4.91626323]
[1767563681732,0.78498394,3145.0,3143.6,5.04960676]
[1767563682139,0.14338089,3145.5,3143.7,0.13334353]
[1767563682340,0.78498394,3145.1,3143.7,0.13334353]
[1767563684732,0.78498394,3145.3,3143.7,0.13334353]
[1767563694355,0.78498394,3145.3,3143.7,5.04234353]
[1767563694556,0.78498394,3145.3,3143.8,0.13334353]
[1767563699761,0.14338089,3145.5,3143.8,0.13334353]
[1767563700065,1.79833285,3145.4,3143.8,0.13334353]
[1767563700265,1.01334891,3145.3,3143.8,0.13334353]
[1767563701965,0.78498394,3145.4,3143.8,0.13334353]
[1767563702464,0.78498394,3145.4,3143.9,4.91]
[1767563702664,0.78498394,3145.4,3143.9,5.0511076]
[1767563704061,0.78498394,3145.4,3144.0,0.1411076]
[1767563706467,0.78498394,3145.4,3144.1,4.91]
[1767563708463,0.14338089,3145.5,3144.1,4.91]
[1767563710464,0.14338089,3145.5,3144.1,5.0511076]
[1767563712164,0.0040284,3145.6,3144.2,0.1411076]
[1767563716470,0.13582691,3145.6,3143.8,0.3002176]
[1767563716666,0.13179851,3145.4,3143.8,0.1411076]
[1767563738587,0.0040284,3145.6,3143.8,0.1411076]
[1767563754921,0.0040284,3145.6,3143.8,0.3002176]
[1767563755318,0.0040284,3145.6,3143.9,0.13955958]
[1767563763224,0.0040284,3145.6,3143.9,0.29865958]
[1767563763423,0.0040284,3145.6,3144.0,0.14072205]
[1767563764521,0.0040284,3145.6,3144.0,0.29982205]
[1767563764822,0.0040284,3145.6,3144.1,0.14072205]
[1767563765019,0.0040284,3145.6,3144.3,0.14072205]
[1767563769730,0.0040284,3145.6,3144.7,0.14072205]
[1767563774933,0.0040284,3145.6,3144.7,6.14072205]
[1767563775130,0.0040284,3145.6,3144.8,0.14072205]
[1767563775330,0.64081289,3146.4,3145.0,0.14072205]
[1767563776336,0.64361401,3146.4,3145.0,0.14072205]
[1767563777532,0.78470055,3146.3,3145.0,0.14072205]
[1767563777727,0.78470055,3145.5,3144.7,4.24]
[1767563777924,0.78470055,3145.8,3144.7,4.24]
[1767563778437,0.78470055,3145.8,3144.7,4.38072205]
[1767563783234,0.78470055,3146.1,3144.8,0.14072205]
[1767563804657,0.14522031,3146.3,3144.8,0.14072205]
[1767563804855,0.78470055,3146.1,3144.8,0.14072205]
[1767563808952,0.92992086,3146.3,3144.8,0.14072205]
[1767563810273,0.78470055,3146.0,3144.7,4.893]
[1767563810569,0.78470055,3146.0,3144.6,5.05207]
[1767563813869,0.78470055,3146.0,3144.6,5.1861637]
[1767563815974,0.14483242,3146.2,3144.6,5.1861637]
[1767563816173,0.78470055,3146.1,3144.6,5.1861637]
[1767563818474,0.78470055,3146.1,3144.7,0.1340937]
[1767563827988,0.00280112,3146.4,3144.7,0.1340937]
[1767563828176,1.00454518,3146.3,3144.9,0.13229033]
[1767563828374,0.00280112,3146.4,3144.9,0.13229033]
[1767563828888,1.00446607,3146.3,3144.9,0.13229033]
[1767563829085,0.78470055,3146.2,3144.7,0.13229033]
[1767563829287,0.78470055,3146.2,3144.8,4.893]
[1767563831090,0.78470055,3146.2,3144.7,0.13229033]
[1767563831288,0.78470055,3146.2,3144.8,4.894]
[1767563832191,0.78470055,3146.2,3144.8,5.02629033]
[1767563832574,0.13921035,3146.3,3144.8,5.02629033]
[1767563834390,0.13921035,3146.2,3144.8,0.13229033]
[1767563834888,0.13921035,3146.2,3144.8,4.898]
[1767563835289,0.13921035,3146.2,3144.8,4.897]
[1767563836892,0.13921035,3145.6,3144.3,4.897]
[1767563837691,0.13921035,3145.6,3144.0,0.13229033]
[1767563837889,0.13921035,3145.6,3144.1,4.899]
[1767563839798,0.13921035,3145.6,3144.1,5.03129033]
[1767563839998,0.13921035,3145.6,3144.2,0.13229033]
[1767563845699,0.13921035,3145.6,3143.6,0.29367356]
[1767563845910,0.13921035,3145.6,3143.7,5.02929033]
[1767563846614,0.13921035,3145.6,3143.8,0.13229033]
[1767563862030,0.78473938,3145.7,3143.8,0.13229033]
[1767563862230,0.15901,3145.8,3143.8,0.13229033]
[1767563862428,1.00688662,3145.7,3143.8,0.13229033]
[1767563862635,0.15901,3145.8,3143.8,0.13229033]
[1767563862837,1.00688664,3145.7,3143.8,0.13229033]
[1767563863131,0.15901,3145.8,3143.8,0.13229033]
[1767563863333,1.00712164,3145.7,3143.8,0.13229033]
[1767563863533,0.29691369,3145.8,3143.8,0.13229033]
[1767563863730,1.0071368,3145.7,3143.8,0.13229033]
[1767563864035,0.29691369,3145.8,3143.8,0.13229033]
[1767563864235,1.00713502,3145.7,3143.8,0.13229033]
[1767563864436,1.00713502,3145.6,3143.8,0.13229033]
[1767563864632,0.29691369,3145.8,3143.8,0.13229033]
[1767563864832,1.00751799,3145.7,3143.8,0.13229033]
[1767563865133,1.00751799,3145.6,3143.8,0.13229033]
[1767563865331,0.29691369,3145.8,3143.8,0.13229033]
[1767563865534,1.00795755,3145.7,3143.8,0.13229033]
[1767563865833,1.00795755,3145.6,3143.8,0.13229033]
[1767563866033,0.29691369,3145.8,3143.8,0.13229033]
[1767563866234,1.00795613,3145.7,3143.8,0.13229033]
[1767563866434,1.00795613,3145.6,3143.8,0.13229033]
[1767563866633,1.00795613,3145.5,3143.8,0.13229033]
[1767563866837,0.29691369,3145.8,3143.8,0.13229033]
[1767563867030,1.00865667,3145.7,3143.8,0.13229033]
[1767563867225,1.00865667,3145.6,3143.8,0.13229033]
[1767563867429,1.00865667,3145.5,3143.8,0.13229033]
[1767563867629,0.29691369,3145.8,3143.8,0.13229033]
[1767563867833,1.00871731,3145.7,3143.8,0.13229033]
[1767563868031,1.00871731,3145.6,3143.8,0.13229033]
[1767563868232,1.00871731,3145.5,3143.8,0.13229033]
[1767563868433,0.29691369,3145.8,3143.8,0.13229033]
[1767563868628,1.00871408,3145.7,3143.8,0.13229033]
[1767563868833,1.00871408,3145.6,3143.8,0.13229033]
[1767563869036,1.00871408,3145.5,3143.8,0.13229033]
[1767563869239,0.13790369,3145.7,3143.8,0.13229033]
[1767563869438,1.00877213,3145.6,3143.8,0.13229033]
[1767563869634,0.13790369,3145.7,3143.8,0.13229033]
[1767563869635,1.00877213,3145.5,3143.8,0.13229033]
[1767563869835,0.13790369,3145.7,3143.8,0.13229033]
[1767563870043,1.00877207,3145.6,3143.8,0.13229033]
[1767563870243,1.00877207,3145.5,3143.8,0.13229033]
[1767563870543,0.13790369,3145.7,3143.8,0.13229033]
[1767563870739,1.00890671,3145.6,3143.8,0.13229033]
[1767563870940,1.00890671,3145.5,3143.8,0.13229033]
[1767563871141,0.13790369,3145.7,3143.8,0.13229033]
[1767563871341,1.00933049,3145.6,3143.8,0.13229033]
[1767563871544,1.00933049,3145.5,3143.8,0.13229033]
[1767563871747,0.13790369,3145.7,3143.8,0.13229033]
[1767563872043,1.00935167,3145.6,3143.8,0.13229033]
[1767563872236,1.00935167,3145.5,3143.8,0.13229033]
[1767563872438,0.13790369,3145.7,3143.8,0.13229033]
[1767563872638,1.00956936,3145.6,3143.8,0.13229033]
[1767563872838,1.00956936,3145.5,3143.8,0.13229033]
[1767563873040,0.13790369,3145.7,3143.8,0.13229033]
[1767563873341,1.00956996,3145.6,3143.8,0.13229033]
[1767563873544,1.00956996,3145.5,3143.8,0.13229033]
[1767563873737,0.13790369,3145.7,3143.8,0.13229033]
[1767563873940,1.00999158,3145.6,3143.8,0.13229033]
[1767563874137,1.00999158,3145.5,3143.8,0.13229033]
[1767563874337,1.00999158,3145.4,3143.8,0.13229033]
[1767563874543,0.13790369,3145.7,3143.8,0.13229033]
[1767563874740,1.00987547,3145.6,3143.8,0.13229033]
[1767563875045,1.00987547,3145.5,3143.8,0.13229033]
[1767563875246,1.00994853,3145.4,3143.8,0.13229033]
[1767563875545,0.13790369,3145.7,3143.8,0.13229033]
[1767563875747,1.00993325,3145.6,3143.8,0.13229033]
[1767563876042,1.00993325,3145.5,3143.8,0.13229033]
[1767563876244,1.00993325,3145.4,3143.8,0.13229033]
[1767563876442,0.13790369,3145.7,3143.8,0.13229033]
[1767563876643,1.00994183,3145.6,3143.8,0.13229033]
[1767563876843,1.00994183,3145.5,3143.8,0.13229033]
[1767563877046,1.00994183,3145.4,3143.8,0.13229033]
[1767563877245,0.13790369,3145.7,3143.8,0.13229033]
[1767563877450,1.00931991,3145.6,3143.8,0.13229033]
[1767563877748,1.00931991,3145.5,3143.8,0.13229033]
[1767563877949,1.00931991,3145.4,3143.8,0.13229033]
[1767563878247,0.13790369,3145.7,3143.8,0.13229033]
[1767563878448,1.00932041,3145.6,3143.8,0.13229033]
[1767563878646,1.00932041,3145.5,3143.8,0.13229033]
[1767563878846,1.00932041,3145.4,3143.8,0.13229033]
[1767563879050,0.13790369,3145.7,3143.8,0.13229033]
[1767563879244,1.0093252,3145.6,3143.8,0.13229033]
[1767563879445,1.0093252,3145.5,3143.8,0.13229033]
[1767563879644,1.0093252,3145.4,3143.8,0.13229033]
[1767563879846,0.13790369,3145.7,3143.8,0.13229033]
[1767563880052,1.00932292,3145.6,3143.8,0.13229033]
[1767563880250,1.00932292,3145.5,3143.8,0.13229033]
[1767563880451,1.00932292,3145.4,3143.8,0.13229033]
[1767563880749,0.13790369,3145.7,3143.8,0.13229033]
[1767563880949,1.00932385,3145.6,3143.8,0.13229033]
[1767563881151,1.00932385,3145.5,3143.8,0.13229033]
[1767563881345,1.00932385,3145.4,3143.8,0.13229033]
[1767563881546,0.13790369,3145.7,3143.8,0.13229033]
[1767563881746,1.00913482,3145.6,3143.8,0.13229033]
[1767563881944,1.00913482,3145.5,3143.8,0.13229033]
[1767563882148,1.00913482,3145.4,3143.8,0.13229033]
[1767563882347,0.15901,3145.8,3143.8,0.13229033]
[1767563882549,1.00915314,3145.7,3143.8,0.13229033]
[1767563882749,1.00915314,3145.6,3143.8,0.13229033]
[1767563882946,1.00915314,3145.5,3143.8,0.13229033]
[1767563883151,0.29949405,3145.8,3143.8,0.13229033]
[1767563883356,1.00914957,3145.7,3143.8,0.13229033]
[1767563883545,1.00914957,3145.6,3143.8,0.13229033]
[1767563883845,1.00914957,3145.5,3143.8,0.13229033]
[1767563884045,1.00914957,3145.4,3143.8,0.13229033]
[1767563884254,0.29949405,3145.8,3143.8,0.13229033]
[1767563884449,1.14962991,3145.7,3143.8,0.13229033]
[1767563884650,1.00914586,3145.6,3143.8,0.13229033]
[1767563884951,1.00914586,3145.5,3143.8,0.13229033]
[1767563885149,0.14048405,3145.7,3143.8,0.13229033]
[1767563885351,1.00914505,3145.6,3143.8,0.13229033]
[1767563885651,1.00914505,3145.5,3143.8,0.13229033]
[1767563885852,0.15901,3145.8,3143.8,0.13229033]
[1767563886148,1.00919356,3145.7,3143.8,0.13229033]
[1767563886353,1.00919356,3145.6,3143.8,0.13229033]
[1767563886546,0.15901,3145.8,3143.8,0.13229033]
[1767563886748,1.00895113,3145.7,3143.8,0.13229033]
[1767563886956,1.00895113,3145.6,3143.8,0.13229033]
[1767563887150,0.15901,3145.8,3143.8,0.13229033]
[1767563887357,1.00883658,3145.7,3143.8,0.13229033]
[1767563887554,1.00883658,3145.6,3143.8,0.13229033]
[1767563887754,0.15901,3145.8,3143.8,0.13229033]
[1767563887955,1.00883353,3145.7,3143.8,0.13229033]
[1767563888153,1.00883353,3145.6,3143.8,0.13229033]
[1767563888349,0.15901,3145.8,3143.8,0.13229033]
[1767563888554,1.00839982,3145.7,3143.8,0.13229033]
[1767563888755,0.15901,3145.8,3143.8,0.13229033]
[1767563888955,1.00839946,3145.7,3143.8,0.13229033]
[1767563889155,0.15901,3145.8,3143.8,0.13229033]
[1767563889357,1.00833729,3145.7,3143.8,0.13229033]
[1767563889546,0.15901,3145.8,3143.8,0.13229033]
[1767563889751,1.00833728,3145.7,3143.8,0.13229033]
[1767563890054,0.15901,3145.8,3143.8,0.13229033]
[1767563890254,1.00833645,3145.7,3143.8,0.13229033]
[1767563890453,0.15901,3145.8,3143.8,0.13229033]
[1767563890653,1.00828583,3145.7,3143.8,0.13229033]
[1767563890857,0.15901,3145.8,3143.8,0.13229033]
[1767563891059,1.0082843,3145.7,3143.8,0.13229033]
[1767563891260,0.15901,3145.8,3143.8,0.13229033]
[1767563891460,1.00824384,3145.7,3143.8,0.13229033]
[1767563891663,0.15901,3145.8,3143.8,0.13229033]
[1767563891862,1.00824384,3145.7,3143.9,0.1405097]
[1767563892060,0.15901,3145.8,3143.9,0.1405097]
[1767563892359,1.00823161,3145.7,3143.9,0.1405097]
[1767563892564,0.15901,3145.8,3143.9,0.1405097]
[1767563892768,1.0081964,3145.7,3143.9,0.1405097]
[1767563892956,0.15901,3145.8,3143.9,0.1405097]
[1767563893159,1.00819509,3145.7,3143.9,0.1405097]
[1767563893359,0.15901,3145.8,3143.9,0.1405097]
[1767563893560,1.00816626,3145.7,3143.9,0.1405097]
[1767563893761,0.15901,3145.8,3143.9,0.1405097]
[1767563893959,1.00816626,3145.7,3143.9,0.1405097]
[1767563894161,0.15901,3145.8,3143.9,0.1405097]
[1767563894362,1.00814099,3145.7,3143.9,0.1405097]
[1767563894564,0.78497283,3145.7,3144.2,0.1405097]
[1767563903578,0.92545688,3145.7,3144.2,0.1405097]
[1767563906787,0.14048405,3145.6,3144.1,0.78497283]
[1767563910288,0.14048405,3145.6,3144.1,0.92554638]
[1767563918893,0.78497283,3145.4,3144.2,4.885]
[1767563923997,0.78497283,3145.4,3144.1,0.14057355]
[1767563924295,0.78497283,3145.4,3144.2,4.887]
[1767563924494,0.78497283,3145.4,3144.2,5.02029752]
[1767563924692,0.78497283,3145.7,3144.3,0.13329752]
[1767563924892,1.00773588,3145.6,3144.3,0.13329752]
[1767563925193,0.78497283,3145.7,3144.3,0.13329752]
[1767563925393,1.00772038,3145.6,3144.3,0.13329752]
[1767563925593,0.78497283,3145.7,3144.3,0.13329752]
[1767563925892,1.00772201,3145.6,3144.3,0.13329752]
[1767563926086,0.78497283,3145.7,3144.3,0.13329752]
[1767563926288,1.00772201,3145.6,3144.3,0.13329752]
[1767563926486,0.78497283,3145.7,3144.3,0.13329752]
[1767563926696,1.00770603,3145.6,3144.3,0.13329752]
[1767563926898,0.78497283,3145.7,3144.3,0.13329752]
[1767563927199,1.0077076,3145.6,3144.3,0.13329752]
[1767563927397,0.78497283,3145.7,3144.3,0.13329752]
[1767563927696,1.00770525,3145.6,3144.3,0.13329752]
[1767563927898,0.78497283,3145.7,3144.3,0.13329752]
[1767563928100,1.00770523,3145.6,3144.3,0.13329752]
[1767563928396,0.78497283,3145.7,3144.3,0.13329752]
[1767563928597,1.00772122,3145.6,3144.3,0.13329752]
[1767563928802,0.78497283,3145.7,3144.3,0.13329752]
[1767563929094,1.00777115,3145.6,3144.3,0.13329752]
[1767563929294,0.78497283,3145.7,3144.3,0.13329752]
[1767563929594,1.00776853,3145.6,3144.3,0.13329752]
[1767563929800,0.78497283,3145.7,3144.3,0.13329752]
[1767563930099,1.00370353,3145.6,3144.3,0.13329752]
[1767563930397,0.78497283,3145.7,3144.3,0.13329752]
[1767563930588,1.00318465,3145.6,3144.3,0.13329752]
[1767563930787,0.78497283,3145.7,3144.3,0.13329752]
[1767563930988,1.0025473,3145.6,3144.3,0.13329752]
[1767563931190,0.78497283,3145.7,3144.3,0.13329752]
[1767563931395,1.0025954,3145.6,3144.3,0.13329752]
[1767563931697,0.78497283,3145.7,3144.3,0.13329752]
[1767563931893,1.00203899,3145.6,3144.3,0.13329752]
[1767563932096,0.78497283,3145.7,3144.3,0.13329752]
[1767563932298,1.001799,3145.6,3144.3,0.13329752]
[1767563932594,0.78497283,3145.7,3144.3,0.13329752]
[1767563933107,1.00154977,3145.6,3144.3,0.13329752]
[1767563933287,0.78497283,3145.7,3144.3,0.13329752]
[1767563936406,0.92922021,3145.7,3144.3,0.13329752]
[1767563941304,0.78497283,3145.4,3143.9,0.92551394]
[1767563941603,0.78497283,3145.4,3144.0,0.14054111]
[1767563945604,0.78497283,3145.5,3144.0,0.14054111]
[1767563954617,0.14424738,3145.7,3144.0,0.14054111]
[1767563954915,1.00337686,3145.6,3144.0,0.14054111]
[1767563955117,0.14424738,3145.7,3144.0,0.14054111]
[1767563955322,1.00336011,3145.6,3144.0,0.14054111]
[1767563955616,0.14424738,3145.7,3144.0,0.14054111]
[1767563955820,1.00327056,3145.6,3144.0,0.14054111]
[1767563956018,0.14424738,3145.7,3144.0,0.14054111]
[1767563956316,1.00331864,3145.6,3144.0,0.14054111]
[1767563956618,0.14424738,3145.7,3144.0,0.14054111]
[1767563956815,1.00340862,3145.6,3144.0,0.14054111]
[1767563957116,0.14424738,3145.7,3144.0,0.14054111]
[1767563957316,1.00340706,3145.6,3144.0,0.14054111]
[1767563957517,0.14424738,3145.7,3144.0,0.14054111]
[1767563957717,1.00341295,3145.6,3144.0,0.14054111]
[1767563957919,0.14424738,3145.7,3144.0,0.14054111]
[1767563958123,1.00341447,3145.6,3144.0,0.14054111]
[1767563958415,0.14424738,3145.7,3144.0,0.14054111]
[1767563958620,1.00341366,3145.6,3144.0,0.14054111]
[1767563958816,0.14424738,3145.7,3144.0,0.14054111]
[1767563959021,1.00341355,3145.6,3144.0,0.14054111]
[1767563959222,0.14424738,3145.7,3144.0,0.14054111]
[1767563959425,1.00342108,3145.6,3144.0,0.14054111]